[Event "DVM U16w 2024"]
[Site "Neumuenster"]
[Date "2024.12.29"]
[Round "6"]
[White "Halas, Neele Zoe"]
[Black "Reich, Elisabeth"]
[Result "1/2-1/2"]
[ECO "C02"]
[WhiteElo "1835"]
[BlackElo "1861"]
[Annotator "NA RC"]
[PlyCount "55"]
[EventDate "2024.12.23"]
[EventType "team-tourn"]
[EventRounds "7"]
[EventCountry "GER"]
[SourceTitle "playchess.com"]
[Source "ChessBase"]
[SourceQuality "1"]
[TimeControl "40/5400+30:1800+30"]

1. e4 {[%emt 0:00:13]} c5 {[%emt 0:00:06]} 2. c3 {[%emt 0:00:04]} e6 {[%emt 0:00:05]} 3. d4 {[%emt 0:00:05]} cxd4 {[%emt 0:00:05]} 4. cxd4 {[%emt 0:00:06]} d5 {[%emt 0:00:05]} 5. e5 {[%emt 0:00:06]} Nc6 {[%emt 0:00:06]} 6. Nf3 {[%emt 0:00:47]} Bb4+ {[%emt 0:00:27]} 7. Bd2 {[%emt 0:00:47]} Qb6 {[%emt 0:00:41]} 8. Bxb4 {[%emt 0:00:23]} Qxb4+ {[%emt 0:00:03]} 9. Qd2 {[%emt 0:00:13]} Nh6 {[%emt 0:00:41]} 10. a3 {[%emt 0:04:00]} Qb6 {[%emt 0:00:10]} 11. Nc3 {[%emt 0:00:53]} Nf5 {[%emt 0:04:14]} 12. Bb5 {[%emt 0:00:57]} Bd7 {[%emt 0:00:26]} 13. Bxc6 {[%emt 0:00:07]} Bxc6 {[%emt 0:00:04]} 14. O-O {[%emt 0:01:39]} O-O {[%emt 0:01:24]} 15. Rad1 {[%emt 0:18:10]} Rac8 {[%emt 0:01:33]} 16. h4 {[%emt 0:27:27]} Bb5 {[%emt 0:02:53]} 17. Nxb5 {[%emt 0:00:38]} Qxb5 {[%emt 0:00:02]} 18. g4 {[%emt 0:09:34]} Ne7 {[%emt 0:01:11]} 19. Qg5 {[%emt 0:09:45]} f6 {[%emt 0:00:57]} 20. exf6 {[%emt 0:00:16]} Rxf6 {[%emt 0:00:01]} 21. Ne5 {[%emt 0:00:19]} Ng6 {[%emt 0:03:47]} 22. h5 {[%emt 0:02:05]} Nxe5 {[%emt 0:02:24]} 23. Qxe5 {[%emt 0:00:15]} Qc6 {[%emt 0:01:28]} 24. Qe3 {[%emt 0:01:53]} Rcf8 {[%emt 0:01:06]} 25. Rde1 {[%emt 0:07:34]} Qd6 {[%emt 0:02:45]} 26. Kg2 {[%emt 0:02:05]} Re8 {[%emt 0:03:03]} 27. f3 {[%emt 0:02:04]} Rf7 {[%emt 0:01:08]} 28. Rc1 {[%emt 0:05:38]} 1/2-1/2

[Event "DVM U16w 2024"]
[Site "Neumuenster"]
[Date "2024.12.29"]
[Round "6"]
[White "Paliwal, Kashika"]
[Black "Glotz, Diana"]
[Result "1/2-1/2"]
[ECO "B00"]
[WhiteElo "1812"]
[BlackElo "1641"]
[Annotator "NA RC"]
[PlyCount "87"]
[EventDate "2024.12.23"]
[EventType "team-tourn"]
[EventRounds "7"]
[EventCountry "GER"]
[SourceTitle "playchess.com"]
[Source "ChessBase"]
[SourceQuality "1"]
[TimeControl "40/5400+30:1800+30"]

1. e4 {[%emt 0:00:01]} b6 {[%emt 0:01:25]} 2. d4 {[%emt 0:00:15]} Bb7 {[%emt 0:00:27]} 3. Nc3 {[%emt 0:00:15]} e6 {[%emt 0:00:26]} 4. a3 {[%emt 0:00:15]} Nf6 {[%emt 0:05:41]} 5. Bd3 {[%emt 0:01:06]} Be7 {[%emt 0:01:58]} 6. Nf3 {[%emt 0:01:18]} O-O {[%emt 0:04:43]} 7. O-O {[%emt 0:00:09]} d5 {[%emt 0:02:42]} 8. e5 {[%emt 0:02:46]} Nfd7 {[%emt 0:01:12]} 9. Re1 {[%emt 0:06:23]} c5 {[%emt 0:01:38]} 10. b3 {[%emt 0:03:02]} Nc6 {[%emt 0:02:19]} 11. dxc5 {[%emt 0:01:42]} Bxc5 {[%emt 0:01:29]} 12. Bb2 {[%emt 0:01:55]} a6 {[%emt 0:03:59]} 13. b4 {[%emt 0:02:37]} Be7 {[%emt 0:01:30]} 14. Ne2 {[%emt 0:00:55]} Bg5 {[%emt 0:05:41]} 15. Ned4 {[%emt 0:02:53]} Nxd4 {[%emt 0:01:31]} 16. Nxd4 {[%emt 0:01:10]} Bh6 {[%emt 0:02:08]} 17. Qg4 {[%emt 0:06:33]} Qg5 {[%emt 0:07:33]} 18. Qxg5 {[%emt 0:02:13]} Bxg5 {[%emt 0:00:07]} 19. g3 {[%emt 0:00:31]} Be7 {[%emt 0:14:01]} 20. f4 {[%emt 0:01:49]} a5 {[%emt 0:04:18]} 21. c3 {[%emt 0:06:17]} Rfc8 {[%emt 0:04:08]} 22. f5 {[%emt 0:07:05]} Nf8 {[%emt 0:04:11]} 23. h4 {[%emt 0:03:57]} Ba6 {[%emt 0:01:38]} 24. b5 {[%emt 0:02:46]} Bb7 {[%emt 0:00:31]} 25. a4 {[%emt 0:00:43]} Bc5 {[%emt 0:00:52]} 26. Kh2 {[%emt 0:01:40]} Bxd4 {[%emt 0:01:50]} 27. cxd4 {[%emt 0:00:34]} Rc7 {[%emt 0:01:36]} 28. Rec1 {[%emt 0:01:09]} Rac8 {[%emt 0:00:19]} 29. Rxc7 {[%emt 0:00:53]} Rxc7 {[%emt 0:00:06]} 30. Rc1 {[%emt 0:00:07]} Rxc1 {[%emt 0:00:45]} 31. Bxc1 {[%emt 0:00:06]} Bc8 {[%emt 0:00:39]} 32. g4 {[%emt 0:02:16]} Bd7 {[%emt 0:00:48]} 33. Kg3 {[%emt 0:01:00]} Be8 {[%emt 0:04:17]} 34. f6 {[%emt 0:01:11]} g6 {[%emt 0:01:32]} 35. Kf4 {[%emt 0:00:45]} Nd7 {[%emt 0:08:33]} 36. Kg5 {[%emt 0:03:27]} Nb8 {[%emt 0:01:57]} 37. h5 {[%emt 0:03:04]} Nd7 {[%emt 0:00:22]} 38. hxg6 {[%emt 0:01:13]} hxg6 {[%emt 0:00:05]} 39. Kf4 {[%emt 0:00:09]} Kh7 {[%emt 0:00:40]} 40. g5 {[%emt 0:00:39]} Kg8 {[%emt 0:00:17]} 41. Ke3 {[%emt 0:30:27]} Nb8 {[%emt 0:31:54]} 42. Ba3 {[%emt 0:00:18]} Nd7 {[%emt 0:00:30]} 43. Bd6 {[%emt 0:03:35]} Kh7 {[%emt 0:00:31]} 44. Bc7 {[%emt 0:01:46]} 1/2-1/2

[Event "DVM U16w 2024"]
[Site "Neumuenster"]
[Date "2024.12.29"]
[Round "6"]
[White "Czaeczine, Paula"]
[Black "Neumann, Helena"]
[Result "0-1"]
[ECO "B14"]
[WhiteElo "1811"]
[BlackElo "2041"]
[Annotator "NA RC"]
[PlyCount "170"]
[EventDate "2024.12.23"]
[EventType "team-tourn"]
[EventRounds "7"]
[EventCountry "GER"]
[SourceTitle "playchess.com"]
[Source "ChessBase"]
[SourceQuality "1"]
[TimeControl "40/5400+30:1800+30"]

1. e4 {[%emt 0:00:02]} c6 {[%emt 0:00:03]} 2. d4 {[%emt 0:00:05]} d5 {[%emt 0:00:03]} 3. exd5 {[%emt 0:00:05]} cxd5 {[%emt 0:00:02]} 4. c4 {[%emt 0:00:06]} Nf6 {[%emt 0:00:03]} 5. Nc3 {[%emt 0:00:08]} e6 {[%emt 0:00:04]} 6. Nf3 {[%emt 0:00:09]} Bb4 {[%emt 0:00:04]} 7. a3 {[%emt 0:01:46]} Bxc3+ {[%emt 0:01:16]} 8. bxc3 {[%emt 0:00:06]} O-O {[%emt 0:01:50]} 9. cxd5 {[%emt 0:03:23]} exd5 {[%emt 0:00:29]} 10. Be2 {[%emt 0:01:10]} Bf5 {[%emt 0:02:23]} 11. O-O {[%emt 0:01:37]} Ne4 {[%emt 0:00:22]} 12. c4 {[%emt 0:09:41]} Re8 {[%emt 0:05:44]} 13. Bd3 {[%emt 0:06:09]} dxc4 {[%emt 0:04:25]} 14. Bxc4 {[%emt 0:00:16]} Qc7 {[%emt 0:01:04]} 15. Ne5 {[%emt 0:04:06]} Nd6 {[%emt 0:07:50]} 16. Ba2 {[%emt 0:06:05]} Qc3 {[%emt 0:11:57]} 17. Bf4 {[%emt 0:08:55]} Nc6 {[%emt 0:04:13]} 18. Nxc6 {[%emt 0:06:44]} Qxc6 {[%emt 0:01:15]} 19. Qb3 {[%emt 0:06:26]} Re7 {[%emt 0:01:47]} 20. Rac1 {[%emt 0:05:48]} Qa6 {[%emt 0:05:02]} 21. Qd5 {[%emt 0:05:39]} Rd7 {[%emt 0:01:09]} 22. Rfe1 {[%emt 0:06:37]} Bg6 {[%emt 0:04:49]} 23. Bc4 {[%emt 0:09:55]} Qxa3 {[%emt 0:10:56]} 24. Bb5 {[%emt 0:02:45]} Rdd8 {[%emt 0:00:05]} 25. Bxd6 {[%emt 0:05:06]} Rxd6 {[%emt 0:01:33]} 26. Qxb7 {[%emt 0:03:35]} Rdd8 {[%emt 0:02:17]} 27. Ra1 {[%emt 0:02:31]} Qc3 {[%emt 0:03:14]} 28. d5 {[%emt 0:01:29]} Rab8 {[%emt 0:01:31]} 29. Qc6 {[%emt 0:00:45]} Qb3 {[%emt 0:05:34]} 30. Bc4 {[%emt 0:01:21]} Qb4 {[%emt 0:00:11]} 31. d6 {[%emt 0:01:32]} Rbc8 {[%emt 0:02:39]} 32. Qxc8 {[%emt 0:01:47]} Rxc8 {[%emt 0:00:06]} 33. d7 {[%emt 0:00:07]} Rf8 {[%emt 0:05:14]} 34. Re8 {[%emt 0:00:51]} Qd6 {[%emt 0:01:20]} 35. d8=Q {[%emt 0:00:33]} Qxd8 {[%emt 0:00:05]} 36. Rxd8 {[%emt 0:00:04]} Rxd8 {[%emt 0:00:06]} 37. h3 {[%emt 0:00:39]} Rd7 {[%emt 0:00:07]} 38. Bb5 {[%emt 0:00:39]} Rc7 {[%emt 0:00:51]} 39. Re1 {[%emt 0:00:33]} f6 {[%emt 0:00:05]} 40. Kh2 {[%emt 0:00:34]} a5 {[%emt 0:01:05]} 41. Ba4 {[%emt 0:04:00]} Kf8 {[%emt 0:00:56]} 42. f3 {[%emt 0:06:28]} Rc8 {[%emt 0:02:22]} 43. Kg3 {[%emt 0:01:33]} Be8 {[%emt 0:00:23]} 44. Re4 {[%emt 0:00:53]} Bxa4 {[%emt 0:00:09]} 45. Rxa4 {[%emt 0:00:05]} Ra8 {[%emt 0:00:03]} 46. Kf4 {[%emt 0:00:22]} Ke7 {[%emt 0:00:06]} 47. Ke4 {[%emt 0:01:40]} Kd6 {[%emt 0:00:06]} 48. Kd4 {[%emt 0:01:25]} Kc6 {[%emt 0:00:05]} 49. Kc4 {[%emt 0:00:29]} Kb6 {[%emt 0:00:06]} 50. Kb3 {[%emt 0:00:41]} Kb5 {[%emt 0:00:15]} 51. Rh4 {[%emt 0:01:06]} h6 {[%emt 0:00:25]} 52. Rh5+ {[%emt 0:00:14]} Kb6 {[%emt 0:00:40]} 53. Ka4 {[%emt 0:00:14]} Kc6 {[%emt 0:01:22]} 54. h4 {[%emt 0:02:01]} Kd6 {[%emt 0:01:36]} 55. Rb5 {[%emt 0:01:09]} g5 {[%emt 0:07:51]} 56. hxg5 {[%emt 0:01:41]} hxg5 {[%emt 0:02:09]} 57. g4 {[%emt 0:06:49]} Ke6 {[%emt 0:03:30]} 58. f4 {[%emt 0:03:06]} gxf4 {[%emt 0:00:28]} 59. Rf5 {[%emt 0:00:15]} Rg8 {[%emt 0:00:05]} 60. Rxf4 {[%emt 0:00:10]} Rg5 {[%emt 0:00:08]} 61. Re4+ {[%emt 0:00:53]} Re5 {[%emt 0:00:47]} 62. Rf4 {[%emt 0:00:14]} Kf7 {[%emt 0:00:11]} 63. Rd4 {[%emt 0:01:46]} Rc5 {[%emt 0:03:59]} 64. Re4 {[%emt 0:00:47]} Kf8 {[%emt 0:00:51]} 65. Rf4 {[%emt 0:00:48]} Ke7 {[%emt 0:00:08]} 66. Re4+ {[%emt 0:00:29]} Kd6 {[%emt 0:00:04]} 67. Rf4 {[%emt 0:00:25]} Ke6 {[%emt 0:00:04]} 68. Re4+ {[%emt 0:02:16]} Kd5 {[%emt 0:00:07]} 69. Re8 {[%emt 0:00:12]} Rc4+ {[%emt 0:00:55]} 70. Kxa5 {[%emt 0:00:07]} Rxg4 {[%emt 0:00:02]} 71. Rf8 {[%emt 0:00:53]} Ke5 {[%emt 0:00:07]} 72. Kb5 {[%emt 0:00:05]} Rd4 {[%emt 0:00:06]} 73. Kc5 {[%emt 0:00:14]} Rd7 {[%emt 0:00:06]} 74. Rh8 {[%emt 0:01:45]} f5 {[%emt 0:00:09]} 75. Rh1 {[%emt 0:00:28]} Rc7+ {[%emt 0:00:04]} 76. Kb4 {[%emt 0:00:06]} f4 {[%emt 0:00:33]} 77. Re1+ {[%emt 0:00:23]} Kd4 {[%emt 0:00:04]} 78. Rd1+ {[%emt 0:00:17]} Ke3 {[%emt 0:00:04]} 79. Rd8 {[%emt 0:00:14]} f3 {[%emt 0:00:04]} 80. Re8+ {[%emt 0:00:06]} Kd2 {[%emt 0:00:03]} 81. Rf8 {[%emt 0:00:10]} Ke2 {[%emt 0:00:03]} 82. Re8+ {[%emt 0:00:04]} Kf1 {[%emt 0:00:04]} 83. Rf8 {[%emt 0:00:06]} f2 {[%emt 0:00:04]} 84. Rf6 {[%emt 0:00:09]} Rg7 {[%emt 0:00:05]} 85. Kc3 {[%emt 0:00:34]} Kg1 {[%emt 0:00:04]} 0-1

[Event "DVM U16w 2024"]
[Site "Neumuenster"]
[Date "2024.12.29"]
[Round "6"]
[White "Averkova, Mariia"]
[Black "Jacobasch, Ronja"]
[Result "0-1"]
[ECO "D04"]
[WhiteElo "1765"]
[BlackElo "1801"]
[Annotator "NA RC"]
[PlyCount "114"]
[EventDate "2024.12.23"]
[EventType "team-tourn"]
[EventRounds "7"]
[EventCountry "GER"]
[SourceTitle "playchess.com"]
[Source "ChessBase"]
[SourceQuality "1"]
[TimeControl "40/5400+30:1800+30"]

1. d4 {[%emt 0:00:03]} Nf6 {[%emt 0:00:06]} 2. Nf3 {[%emt 0:00:06]} g6 {[%emt 0:00:21]} 3. e3 {[%emt 0:00:26]} Bg7 {[%emt 0:00:09]} 4. b3 {[%emt 0:00:09]} O-O {[%emt 0:01:23]} 5. Bb2 {[%emt 0:00:27]} d5 {[%emt 0:07:03]} 6. c4 {[%emt 0:01:43]} e6 {[%emt 0:14:06]} 7. Be2 {[%emt 0:05:42]} Nbd7 {[%emt 0:06:15]} 8. O-O {[%emt 0:09:39]} dxc4 {[%emt 0:03:40]} 9. Bxc4 {[%emt 0:01:09]} Nb6 {[%emt 0:03:36]} 10. Be2 {[%emt 0:01:31]} Nbd5 {[%emt 0:03:08]} 11. Nbd2 {[%emt 0:05:38]} Bd7 {[%emt 0:06:17]} 12. Rc1 {[%emt 0:04:07]} c6 {[%emt 0:07:04]} 13. Nc4 {[%emt 0:04:09]} b5 {[%emt 0:07:48]} 14. Nce5 {[%emt 0:02:14]} Qb6 {[%emt 0:02:16]} 15. Nd3 {[%emt 0:12:54]} Ne4 {[%emt 0:07:31]} 16. Nc5 {[%emt 0:01:26]} Nxc5 {[%emt 0:00:23]} 17. dxc5 {[%emt 0:00:06]} Qc7 {[%emt 0:00:27]} 18. Bxg7 {[%emt 0:01:03]} Kxg7 {[%emt 0:00:05]} 19. Qd4+ {[%emt 0:02:39]} f6 {[%emt 0:01:03]} 20. Qd2 {[%emt 0:03:32]} e5 {[%emt 0:04:18]} 21. e4 {[%emt 0:05:29]} Nf4 {[%emt 0:01:27]} 22. Rfd1 {[%emt 0:00:56]} Rad8 {[%emt 0:01:50]} 23. Qc2 {[%emt 0:04:32]} Be6 {[%emt 0:05:42]} 24. h3 {[%emt 0:10:38]} Rxd1+ {[%emt 0:00:33]} 25. Rxd1 {[%emt 0:00:56]} Rd8 {[%emt 0:00:15]} 26. Ne1 {[%emt 0:02:49]} Rxd1 {[%emt 0:01:30]} 27. Qxd1 {[%emt 0:00:36]} Qe7 {[%emt 0:02:39]} 28. b4 {[%emt 0:06:51]} Bxa2 {[%emt 0:00:53]} 29. Nd3 {[%emt 0:02:21]} Nxe2+ {[%emt 0:01:29]} 30. Qxe2 {[%emt 0:00:14]} Bc4 {[%emt 0:00:08]} 31. Qc2 {[%emt 0:02:21]} Qd7 {[%emt 0:00:37]} 32. Nb2 {[%emt 0:00:17]} Be6 {[%emt 0:00:32]} 33. Qd3 {[%emt 0:00:51]} Qxd3 {[%emt 0:02:34]} 34. Nxd3 {[%emt 0:00:12]} Bb3 {[%emt 0:00:56]} 35. f3 {[%emt 0:01:25]} Kf7 {[%emt 0:00:21]} 36. Kf2 {[%emt 0:00:42]} Ke6 {[%emt 0:01:19]} 37. Ke3 {[%emt 0:03:35]} f5 {[%emt 0:02:58]} 38. h4 {[%emt 0:02:16]} h6 {[%emt 0:03:12]} 39. g3 {[%emt 0:01:25]} Kf6 {[%emt 0:02:23]} 40. exf5 {[%emt 0:02:15]} gxf5 {[%emt 0:00:48]} 41. f4 {[%emt 0:04:42]} e4 {[%emt 0:13:27]} 42. Ne5 {[%emt 0:01:14]} Bd5 {[%emt 0:00:18]} 43. Kd4 {[%emt 0:13:09]} h5 {[%emt 0:02:12]} 44. Ke3 {[%emt 0:01:35]} Ke7 {[%emt 0:00:47]} 45. Kd4 {[%emt 0:03:48]} Kd8 {[%emt 0:01:40]} 46. Kc3 {[%emt 0:00:50]} Kc7 {[%emt 0:01:49]} 47. Kc2 {[%emt 0:03:15]} a5 {[%emt 0:05:10]} 48. bxa5 {[%emt 0:04:30]} b4 {[%emt 0:00:27]} 49. Kb2 {[%emt 0:01:06]} Kb7 {[%emt 0:01:25]} 50. Kc2 {[%emt 0:00:26]} Ka6 {[%emt 0:00:54]} 51. Kb2 {[%emt 0:00:18]} Kxa5 {[%emt 0:00:50]} 52. Kc2 {[%emt 0:00:32]} Kb5 {[%emt 0:00:29]} 53. Kb2 {[%emt 0:00:49]} Kxc5 {[%emt 0:00:58]} 54. Kc2 {[%emt 0:00:22]} Kd4 {[%emt 0:01:16]} 55. Kd2 {[%emt 0:00:45]} e3+ {[%emt 0:01:11]} 56. Kc2 {[%emt 0:00:43]} b3+ {[%emt 0:00:28]} 57. Kc1 {[%emt 0:00:24]} Kc3 {[%emt 0:00:39]} 0-1

[Event "DVM U16w 2024"]
[Site "Neumuenster"]
[Date "2024.12.29"]
[Round "6"]
[White "Mueller, Cosima"]
[Black "Prokscha, Charlotte"]
[Result "0-1"]
[ECO "B76"]
[WhiteElo "1757"]
[BlackElo "1627"]
[Annotator "NA RC"]
[PlyCount "94"]
[EventDate "2024.12.23"]
[EventType "team-tourn"]
[EventRounds "7"]
[EventCountry "GER"]
[SourceTitle "playchess.com"]
[Source "ChessBase"]
[SourceQuality "1"]
[TimeControl "40/5400+30:1800+30"]

1. e4 {[%emt 0:00:02]} c5 {[%emt 0:00:14]} 2. Nf3 {[%emt 0:00:04]} d6 {[%emt 0:00:09]} 3. d4 {[%emt 0:00:08]} cxd4 {[%emt 0:00:06]} 4. Nxd4 {[%emt 0:00:05]} Nf6 {[%emt 0:00:10]} 5. Nc3 {[%emt 0:00:04]} g6 {[%emt 0:00:36]} 6. Be3 {[%emt 0:00:09]} Bg7 {[%emt 0:00:09]} 7. f3 {[%emt 0:00:14]} Nc6 {[%emt 0:00:19]} 8. Qd2 {[%emt 0:00:11]} O-O {[%emt 0:00:24]} 9. O-O-O {[%emt 0:00:29]} d5 {[%emt 0:01:44]} 10. Kb1 {[%emt 0:14:26]} e6 {[%emt 0:15:27]} 11. g4 {[%emt 0:07:55]} Nxd4 {[%emt 0:04:31]} 12. Bxd4 {[%emt 0:00:14]} dxe4 {[%emt 0:00:47]} 13. Bc5 {[%emt 0:05:52]} Qxd2 {[%emt 0:06:43]} 14. Rxd2 {[%emt 0:00:11]} exf3 {[%emt 0:02:36]} 15. Bxf8 {[%emt 0:00:23]} Bxf8 {[%emt 0:03:44]} 16. g5 {[%emt 0:07:02]} Ng4 {[%emt 0:04:04]} 17. Bh3 {[%emt 0:04:03]} Ne5 {[%emt 0:07:06]} 18. Re1 {[%emt 0:02:53]} Nc4 {[%emt 0:03:19]} 19. Rd4 {[%emt 0:09:29]} e5 {[%emt 0:03:56]} 20. Rxc4 {[%emt 0:01:47]} Bxh3 {[%emt 0:00:12]} 21. Ne4 {[%emt 0:01:36]} Rd8 {[%emt 0:06:56]} 22. a3 {[%emt 0:10:23]} b6 {[%emt 0:08:28]} 23. b4 {[%emt 0:04:03]} h6 {[%emt 0:04:41]} 24. Rc3 {[%emt 0:01:31]} Bg2 {[%emt 0:01:34]} 25. gxh6 {[%emt 0:11:11]} Bxh6 {[%emt 0:00:48]} 26. Rd3 {[%emt 0:03:02]} Rxd3 {[%emt 0:02:46]} 27. cxd3 {[%emt 0:00:07]} Bf4 {[%emt 0:00:16]} 28. h4 {[%emt 0:00:50]} f5 {[%emt 0:00:24]} 29. Nd6 {[%emt 0:12:15]} f2 {[%emt 0:00:34]} 30. Rd1 {[%emt 0:00:41]} f1=Q {[%emt 0:00:14]} 31. Rxf1 {[%emt 0:00:09]} Bxf1 {[%emt 0:00:04]} 32. Nc8 {[%emt 0:00:19]} Bxd3+ {[%emt 0:00:27]} 33. Kb2 {[%emt 0:00:09]} e4 {[%emt 0:00:30]} 34. Kc3 {[%emt 0:00:35]} Be5+ {[%emt 0:00:48]} 35. Kd2 {[%emt 0:00:13]} f4 {[%emt 0:00:27]} 36. Ne7+ {[%emt 0:00:30]} Kf7 {[%emt 0:00:29]} 37. Nc6 {[%emt 0:00:09]} Kf6 {[%emt 0:02:12]} 38. Nxa7 {[%emt 0:00:27]} Bc4 {[%emt 0:00:55]} 39. a4 {[%emt 0:01:53]} e3+ {[%emt 0:00:30]} 40. Kc2 {[%emt 0:01:00]} f3 {[%emt 0:00:41]} 41. a5 {[%emt 0:30:22]} bxa5 {[%emt 0:31:02]} 42. b5 {[%emt 0:00:08]} Bxb5 {[%emt 0:02:38]} 43. Nxb5 {[%emt 0:00:09]} f2 {[%emt 0:00:09]} 44. h5 {[%emt 0:00:52]} gxh5 {[%emt 0:00:18]} 45. Na3 {[%emt 0:00:55]} f1=Q {[%emt 0:00:23]} 46. Kb3 {[%emt 0:00:29]} e2 {[%emt 0:03:20]} 47. Kc2 {[%emt 0:01:14]} Qd1# {[%emt 0:00:20]} 0-1

[Event "DVM U16w 2024"]
[Site "Neumuenster"]
[Date "2024.12.29"]
[Round "6"]
[White "Wang, Enya Marie"]
[Black "Kasten, Luna Seraphine"]
[Result "1-0"]
[ECO "B01"]
[WhiteElo "1755"]
[BlackElo "1203"]
[Annotator "NA RC"]
[PlyCount "105"]
[EventDate "2024.12.23"]
[EventType "team-tourn"]
[EventRounds "7"]
[EventCountry "GER"]
[SourceTitle "playchess.com"]
[Source "ChessBase"]
[SourceQuality "1"]
[TimeControl "40/5400+30:1800+30"]

1. e4 {[%emt 0:00:03]} d5 {[%emt 0:00:05]} 2. exd5 {[%emt 0:00:04]} c6 {[%emt 0:00:07]} 3. dxc6 {[%emt 0:00:09]} Nxc6 {[%emt 0:00:30]} 4. Nf3 {[%emt 0:00:08]} Bf5 {[%emt 0:00:24]} 5. Bb5 {[%emt 0:00:56]} Qd6 {[%emt 0:01:22]} 6. Nc3 {[%emt 0:00:49]} e5 {[%emt 0:03:40]} 7. O-O {[%emt 0:01:26]} Be7 {[%emt 0:00:54]} 8. Re1 {[%emt 0:01:24]} Bg4 {[%emt 0:01:23]} 9. h3 {[%emt 0:04:32]} Bh5 {[%emt 0:02:23]} 10. Ba4 {[%emt 0:05:11]} Bf6 {[%emt 0:01:26]} 11. Ne4 {[%emt 0:02:24]} Qc7 {[%emt 0:08:43]} 12. Ng3 {[%emt 0:01:27]} Bg6 {[%emt 0:05:25]} 13. d4 {[%emt 0:01:56]} Nge7 {[%emt 0:03:37]} 14. dxe5 {[%emt 0:03:02]} O-O {[%emt 0:12:10]} 15. exf6 {[%emt 0:01:01]} gxf6 {[%emt 0:00:55]} 16. Nh4 {[%emt 0:02:45]} Nb4 {[%emt 0:01:57]} 17. Nxg6 {[%emt 0:00:50]} fxg6 {[%emt 0:00:35]} 18. Bb3+ {[%emt 0:02:26]} Kh8 {[%emt 0:01:55]} 19. a3 {[%emt 0:04:13]} Rad8 {[%emt 0:02:51]} 20. Qe2 {[%emt 0:00:40]} Nbd5 {[%emt 0:01:12]} 21. c4 {[%emt 0:01:31]} Nf4 {[%emt 0:02:57]} 22. Bxf4 {[%emt 0:01:38]} Qxf4 {[%emt 0:00:25]} 23. Qxe7 {[%emt 0:00:29]} Rfe8 {[%emt 0:02:20]} 24. Qxb7 {[%emt 0:02:18]} Rxe1+ {[%emt 0:01:27]} 25. Rxe1 {[%emt 0:00:18]} a5 {[%emt 0:00:51]} 26. Qf7 {[%emt 0:01:24]} Qh4 {[%emt 0:01:29]} 27. Re8+ {[%emt 0:00:57]} Rxe8 {[%emt 0:00:27]} 28. Qxe8+ {[%emt 0:00:08]} Kg7 {[%emt 0:00:23]} 29. Qe4 {[%emt 0:00:32]} Qh6 {[%emt 0:01:52]} 30. Qe3 {[%emt 0:02:10]} Qxe3 {[%emt 0:00:38]} 31. fxe3 {[%emt 0:00:09]} Kf7 {[%emt 0:00:08]} 32. Kf2 {[%emt 0:00:10]} Ke6 {[%emt 0:01:06]} 33. Bc2 {[%emt 0:00:26]} f5 {[%emt 0:00:10]} 34. b4 {[%emt 0:00:06]} axb4 {[%emt 0:00:23]} 35. axb4 {[%emt 0:00:08]} Kd6 {[%emt 0:00:04]} 36. c5+ {[%emt 0:00:25]} Kc6 {[%emt 0:00:32]} 37. Nxf5 {[%emt 0:00:07]} gxf5 {[%emt 0:00:09]} 38. Bxf5 {[%emt 0:00:07]} Kc7 {[%emt 0:01:10]} 39. Bxh7 {[%emt 0:00:10]} Kd8 {[%emt 0:00:09]} 40. b5 {[%emt 0:00:11]} Kc7 {[%emt 0:00:12]} 41. b6+ {[%emt 0:31:35]} Kb8 {[%emt 0:30:42]} 42. g4 {[%emt 0:00:14]} Kc8 {[%emt 0:00:11]} 43. c6 {[%emt 0:00:08]} Kb8 {[%emt 0:00:05]} 44. g5 {[%emt 0:00:07]} Kc8 {[%emt 0:00:25]} 45. h4 {[%emt 0:00:10]} Kb8 {[%emt 0:00:32]} 46. g6 {[%emt 0:00:23]} Kc8 {[%emt 0:00:10]} 47. Bg8 {[%emt 0:00:23]} Kb8 {[%emt 0:00:10]} 48. Be6 {[%emt 0:00:34]} Ka8 {[%emt 0:00:32]} 49. h5 {[%emt 0:00:13]} Kb8 {[%emt 0:00:09]} 50. h6 {[%emt 0:00:07]} Ka8 {[%emt 0:00:04]} 51. h7 {[%emt 0:00:04]} Kb8 {[%emt 0:00:05]} 52. g7 {[%emt 0:00:08]} Ka8 {[%emt 0:00:10]} 53. h8=Q# {[%emt 0:00:11]} 1-0

[Event "DVM U16w 2024"]
[Site "Neumuenster"]
[Date "2024.12.29"]
[Round "6"]
[White "Fetahovic, Sarah"]
[Black "Scheiding, Sophia"]
[Result "1/2-1/2"]
[ECO "C66"]
[WhiteElo "1739"]
[BlackElo "1672"]
[Annotator "NA RC"]
[PlyCount "42"]
[EventDate "2024.12.23"]
[EventType "team-tourn"]
[EventRounds "7"]
[EventCountry "GER"]
[SourceTitle "playchess.com"]
[Source "ChessBase"]
[SourceQuality "1"]
[TimeControl "40/5400+30:1800+30"]

1. e4 {[%emt 0:00:04]} e5 {[%emt 0:00:21]} 2. Nf3 {[%emt 0:00:09]} Nc6 {[%emt 0:00:34]} 3. Nc3 {[%emt 0:00:42]} Nf6 {[%emt 0:01:59]} 4. Bb5 {[%emt 0:00:30]} d6 {[%emt 0:01:41]} 5. d4 {[%emt 0:01:03]} exd4 {[%emt 0:00:38]} 6. Nxd4 {[%emt 0:00:22]} Bd7 {[%emt 0:00:11]} 7. O-O {[%emt 0:01:53]} Be7 {[%emt 0:00:27]} 8. Re1 {[%emt 0:05:32]} Nxd4 {[%emt 0:04:27]} 9. Qxd4 {[%emt 0:01:44]} c6 {[%emt 0:00:50]} 10. Ba4 {[%emt 0:00:38]} O-O {[%emt 0:00:45]} 11. Bb3 {[%emt 0:03:20]} Be6 {[%emt 0:02:48]} 12. Bxe6 {[%emt 0:14:36]} fxe6 {[%emt 0:02:13]} 13. e5 {[%emt 0:01:05]} c5 {[%emt 0:09:21]} 14. Qd1 {[%emt 0:17:34]} Nd5 {[%emt 0:01:44]} 15. Nxd5 {[%emt 0:03:41]} exd5 {[%emt 0:01:19]} 16. Qxd5+ {[%emt 0:00:37]} Kh8 {[%emt 0:00:08]} 17. exd6 {[%emt 0:03:09]} Bxd6 {[%emt 0:03:53]} 18. Rd1 {[%emt 0:08:14]} Bxh2+ {[%emt 0:03:54]} 19. Kxh2 {[%emt 0:03:00]} Qh4+ {[%emt 0:00:12]} 20. Kg1 {[%emt 0:00:18]} Qxf2+ {[%emt 0:00:11]} 21. Kh2 {[%emt 0:03:15]} Qf6 {[%emt 0:01:06]} 1/2-1/2